fUST/lending_fUST_20251029
["ID","MTS","AMOUNT","RATE_DAILY","PERIOD"]
[392616178,1761748241632,-1320.59,0.00022465,2]
[392616179,1761748241641,-500.0,0.00022465,2]
[392616180,1761748241651,-861.29,0.00022465,2]
[392616181,1761748241660,-676.52,0.00022465,2]
[392616182,1761748241670,-500.0,0.00022465,2]
[392616183,1761748241680,-500.0,0.00022465,2]
[392616184,1761748241689,-500.0,0.00022465,2]
[392616185,1761748241700,-500.0,0.00022465,2]
[392616186,1761748241711,-500.0,0.00022465,2]
[392616187,1761748241721,-500.0,0.00022465,2]
[392616188,1761748241731,-500.0,0.00022465,2]
[392616189,1761748241740,-562.34,0.00022465,2]
[392616190,1761748241750,-500.0,0.00022465,2]
[392616191,1761748241760,-500.0,0.00022465,2]
[392616192,1761748241770,-500.0,0.00022465,2]
[392616193,1761748241780,-500.0,0.00022465,2]
[392616194,1761748241790,-863.18,0.00022465,2]
[392616195,1761748241800,-545.27,0.00022465,2]
[392616196,1761748241811,-834.37,0.00022465,2]
[392616197,1761748241820,-1223.53,0.00022465,2]
[392616198,1761748241831,-500.0,0.00022465,2]
[392616199,1761748241842,-500.0,0.00022465,2]
[392616200,1761748241852,-500.0,0.00022465,2]
[392616201,1761748241862,-500.0,0.00022465,2]
[392616202,1761748241872,-1841.12,0.00022465,2]
[392616203,1761748241882,-780.49,0.00022465,2]
[392616204,1761748241891,-500.0,0.00022465,2]
[392616205,1761748241907,-500.0,0.00022465,2]
[392616206,1761748241922,-964.7,0.00022465,2]
[392616207,1761748241932,-500.0,0.00022465,2]
[392616208,1761748241942,-500.0,0.00022465,2]
[392616209,1761748241952,-602.84,0.00022465,2]
[392616210,1761748241963,-1486.59,0.00022465,2]
[392616211,1761748241973,-500.0,0.00022465,2]
[392616212,1761748241984,-721.35,0.00022465,2]
[392616213,1761748241994,-500.0,0.00022465,2]
[392616214,1761748242005,-2496.0,0.00022465,2]
[392616215,1761748242015,-773.59,0.00022465,2]
[392616216,1761748242025,-686.23,0.00022465,2]
[392616217,1761748242035,-500.0,0.00022465,2]
[392616218,1761748242045,-500.0,0.00022465,2]
[392616219,1761748242055,-500.0,0.00022465,2]
[392616220,1761748242065,-644.77,0.00022465,2]
[392616221,1761748242075,-500.0,0.00022465,2]
[392616222,1761748242084,-500.0,0.00022465,2]
[392616223,1761748242095,-500.0,0.00022465,2]
[392616224,1761748242104,-500.0,0.00022465,2]
[392616225,1761748242114,-500.0,0.00022465,2]
[392616226,1761748242124,-500.0,0.00022465,2]
[392616227,1761748242134,-699.78,0.00022465,2]
[392616228,1761748242144,-775.58,0.00022465,2]
[392616229,1761748242154,-500.0,0.00022465,2]
[392616230,1761748242164,-559.3,0.00022465,2]
[392616231,1761748242174,-500.0,0.00022465,2]
[392616232,1761748242185,-1136.5,0.00022465,2]
[392616233,1761748242195,-151.0,0.00022465,7]
[392616234,1761748242207,-4323.77,0.00022465,2]
[392616235,1761748242218,-500.0,0.00022465,2]
[392616236,1761748242228,-500.0,0.00022465,2]
[392616237,1761748242238,-796.69,0.00022465,2]
[392616238,1761748242248,-500.0,0.00022465,2]
[392616239,1761748242258,-500.0,0.00022465,2]
[392616240,1761748242268,-500.0,0.00022465,2]
[392616241,1761748242278,-579.7,0.00022465,2]
[392616243,1761748242287,-500.0,0.00022465,2]
[392616244,1761748242297,-500.0,0.00022465,2]
[392616245,1761748242307,-942.89,0.00022465,2]
[392616246,1761748242317,-500.0,0.00022465,2]
[392616247,1761748242327,-500.0,0.00022465,2]
[392616248,1761748242338,-151.0,0.00022465,7]
[392616249,1761748242348,-500.0,0.00022465,2]
[392616250,1761748242358,-500.0,0.00022465,2]
[392616251,1761748242368,-1352.33,0.00022465,2]
[392616252,1761748242379,-500.0,0.00022465,2]
[392616253,1761748242389,-500.0,0.00022465,2]
[392616254,1761748242398,-500.0,0.00022465,2]
[392616255,1761748242409,-500.0,0.00022465,2]
[392616256,1761748242419,-657.55,0.00022465,2]
[392616257,1761748242429,-1209.53,0.00022465,2]
[392616258,1761748242439,-1014.96,0.00022465,2]
[392616259,1761748242451,-500.0,0.00022465,2]
[392616260,1761748242460,-500.0,0.00022465,2]
[392616261,1761748242472,-1316.76,0.00022465,2]
[392616262,1761748242483,-502.55,0.00022465,2]
[392616263,1761748242493,-961.23,0.00022465,2]
[392616264,1761748242503,-500.0,0.00022465,2]
[392616265,1761748242514,-1064.64,0.00022465,2]
[392616266,1761748242524,-500.0,0.00022465,2]
[392616267,1761748242533,-944.54,0.00022465,2]
[392616268,1761748242543,-500.0,0.00022465,2]
[392616269,1761748242553,-500.0,0.00022465,2]
[392616270,1761748242563,-500.0,0.00022465,2]
[392616271,1761748242573,-1404.49,0.00022465,2]
[392616272,1761748242584,-696.54,0.00022465,2]
[392616275,1761748242594,-1004.64,0.00022465,2]
[392616276,1761748242605,-2316.28,0.00022465,2]
[392616278,1761748242614,-1014.08,0.00022465,2]
[392616279,1761748242624,-500.0,0.00022465,2]
[392616280,1761748242634,-1168.82,0.00022465,2]
[392616281,1761748242644,-1653.26,0.00022465,2]
[392616282,1761748242654,-500.0,0.00022465,2]
[392616283,1761748242664,-500.0,0.00022465,2]
[392616285,1761748242674,-500.0,0.00022465,2]
[392616286,1761748242686,-542.07,0.00022465,2]
[392616287,1761748242698,-500.0,0.00022465,2]
[392616288,1761748242707,-667.4,0.00022465,2]
[392616289,1761748242717,-1083.47,0.00022465,2]
[392616290,1761748242729,-500.0,0.00022465,2]
[392616291,1761748242739,-1545.35,0.00022465,2]
[392616292,1761748242750,-500.0,0.00022465,2]
[392616293,1761748242761,-500.0,0.00022465,2]
[392616294,1761748242772,-595.43,0.00022465,2]
[392616295,1761748242782,-500.0,0.00022465,2]
[392616296,1761748242795,-500.0,0.00022465,2]
[392616297,1761748242804,-500.0,0.00022465,2]
[392616298,1761748242814,-548.72,0.00022465,2]
[392616299,1761748242825,-500.0,0.00022465,2]
[392616300,1761748242835,-500.0,0.00022465,2]
[392616301,1761748242847,-500.0,0.00022465,2]
[392616302,1761748242858,-500.0,0.00022465,2]
[392616303,1761748242868,-1000.0,0.00022521,2]
[392616304,1761748242879,-1000.0,0.00022521,2]
[392616305,1761748242890,-1000.0,0.00022521,2]
[392616306,1761748242900,-500.71793057,0.00022521,2]
[392616307,1761748242911,-1000.0,0.00022521,2]
[392616308,1761748242924,-1000.0,0.00022521,2]
[392616309,1761748242935,-1000.0,0.00022521,2]
[392616310,1761748242944,-1000.0,0.00022521,2]
[392616311,1761748242955,-168.0,0.00022524,2]
[392616312,1761748242965,-165.8165191,0.00022552,3]
[392616313,1761748242976,-166.0,0.00022552,3]
[392616314,1761748242987,-151.0,0.00022552,3]
[392616315,1761748242998,-166.0,0.00022552,3]
[392616316,1761748243008,-175.49587639,0.00022552,3]
[392616317,1761748243018,-720.0,0.00022566,20]
[392616318,1761748243028,-500.0,0.00022579,5]
[392616319,1761748243037,-168.0,0.00022625,2]
[392616320,1761748243047,-168.0,0.0002266,2]
[392616321,1761748243057,-168.0,0.00022672,2]
[392616322,1761748243067,-300.0,0.00022721,2]
[392616323,1761748243077,-1000.0,0.00022721,2]
[392616324,1761748243087,-1000.0,0.00022721,2]
[392616325,1761748243098,-500.0,0.00022739,2]
[392616326,1761748243304,-845.45,0.00022739,2]
[392616327,1761748243314,-500.0,0.00022739,2]
[392616328,1761748243324,-500.0,0.00022739,2]
[392616329,1761748243334,-500.0,0.00022739,2]
[392616330,1761748243344,-500.0,0.00022739,2]
[392616331,1761748243353,-600.16267454,0.00022739,2]
[392616332,1761748243363,-500.0,0.00022739,2]
[392616333,1761748243372,-500.0,0.00022739,2]
[392616334,1761748243382,-500.0,0.00022739,2]
[392616335,1761748243392,-925.44,0.00022739,2]
[392616336,1761748243402,-500.0,0.00022739,2]
[392616337,1761748243411,-500.0,0.00022739,2]
[392616338,1761748243421,-500.0,0.00022739,2]
[392616339,1761748243431,-500.0,0.00022739,2]
[392616340,1761748243441,-503.10819112,0.00022739,2]
[392616341,1761748243455,-500.0,0.00022739,2]
[392616342,1761748243465,-500.0,0.00022739,2]
[392616343,1761748243474,-500.0,0.00022739,2]
[392616344,1761748243484,-500.0,0.00022739,2]
[392616345,1761748243493,-500.0,0.00022739,2]
[392616346,1761748243503,-500.0,0.00022739,2]
[392616347,1761748243512,-500.0,0.00022739,2]
[392616348,1761748243522,-502.0284938,0.00022739,2]
[392616349,1761748243532,-500.0,0.00022739,2]
[392616350,1761748243541,-500.0,0.00022739,2]
[392616351,1761748243550,-527.41,0.00022739,2]
[392616352,1761748243560,-500.0,0.00022739,2]
[392616353,1761748243569,-500.0,0.00022739,2]
[392616354,1761748243578,-500.0,0.00022739,2]
[392616355,1761748243588,-500.0,0.00022739,2]
[392616356,1761748243597,-500.0,0.00022739,2]
[392616357,1761748243607,-500.0,0.00022739,2]
[392616358,1761748243617,-500.0,0.00022739,2]
[392616359,1761748243626,-500.0,0.00022739,2]
[392616360,1761748243635,-500.0,0.00022739,2]
[392616361,1761748243645,-500.0,0.00022739,2]
[392616362,1761748243655,-500.0,0.00022739,2]
[392616363,1761748243666,-500.0,0.00022739,2]
[392616364,1761748243675,-500.0,0.00022739,2]
[392616365,1761748243685,-2218.58,0.00022739,2]
[392616366,1761748243694,-500.0,0.00022739,2]
[392616367,1761748243704,-500.0,0.00022739,2]
[392616368,1761748243714,-500.0,0.00022739,2]
[392616369,1761748243723,-500.0,0.00022739,2]
[392616370,1761748243732,-500.0,0.00022739,2]
[392616371,1761748243742,-500.0,0.00022739,2]
[392616372,1761748243753,-500.0,0.00022739,2]
[392616373,1761748243762,-500.0,0.00022739,2]
[392616374,1761748243772,-500.0,0.00022739,2]
[392616375,1761748243782,-500.0,0.00022739,2]
[392616376,1761748243792,-500.0,0.00022739,2]
[392616377,1761748243802,-500.0,0.00022739,2]
[392616378,1761748243812,-500.0,0.00022739,2]
[392616379,1761748243821,-500.0,0.00022739,2]
[392616380,1761748243832,-500.0,0.00022739,2]
[392616381,1761748243842,-500.0,0.00022739,2]
[392616382,1761748243851,-934.87,0.00022739,2]
[392616383,1761748243860,-500.0,0.00022739,2]
[392616384,1761748243869,-500.0,0.00022739,2]
[392616385,1761748243882,-500.0,0.00022739,2]
[392616386,1761748243892,-500.0,0.00022739,2]
[392616387,1761748243902,-500.0,0.00022739,2]
[392616388,1761748243913,-500.0,0.00022739,2]
[392616389,1761748243928,-1249.48,0.00022739,2]
[392616390,1761748243939,-500.0,0.00022739,2]
[392616391,1761748243949,-500.0,0.00022739,2]
[392616392,1761748243959,-544.25461632,0.00022739,2]
[392616393,1761748243969,-500.0,0.00022739,2]
[392616394,1761748243978,-500.0,0.00022739,2]
[392616395,1761748243988,-500.0,0.00022739,2]
[392616396,1761748243998,-536.3,0.00022739,2]
[392616397,1761748244009,-500.0,0.00022739,2]
[392616398,1761748244018,-500.0,0.00022739,2]
[392616399,1761748244028,-683.67,0.00022739,2]
[392616400,1761748244038,-597.56,0.00022739,2]
[392616401,1761748244047,-992.54,0.00022739,2]
[392616402,1761748244057,-500.0,0.00022739,2]
[392616403,1761748244066,-500.0,0.00022739,2]
[392616404,1761748244076,-500.0,0.00022739,2]
[392616405,1761748244086,-644.75772989,0.00022739,2]
[392616406,1761748244095,-500.0,0.00022739,2]
[392616407,1761748244105,-631.45202362,0.00022739,2]
[392616408,1761748244116,-861.71989387,0.00022739,2]
[392616409,1761748244126,-500.0,0.00022739,2]
[392616410,1761748244136,-500.0,0.00022739,2]
[392616411,1761748244146,-3443.4326959,0.00022739,2]
[392616412,1761748244155,-500.0,0.00022739,2]
[392616413,1761748244165,-500.0,0.00022739,2]
[392616414,1761748244175,-500.0,0.00022739,2]
[392616415,1761748244184,-517.55,0.00022739,2]
[392616416,1761748244194,-500.0,0.00022739,2]
[392616417,1761748244205,-500.0,0.00022739,2]
[392616418,1761748244214,-500.0,0.00022739,2]
[392616419,1761748244224,-500.0,0.00022739,2]
[392616420,1761748244234,-500.0,0.00022739,2]
[392616421,1761748244244,-500.0,0.00022739,2]
[392616422,1761748244255,-500.0,0.00022739,2]
[392616423,1761748244264,-500.0,0.00022739,2]
[392616424,1761748244274,-500.0,0.00022739,2]
[392616425,1761748244283,-500.0,0.00022739,2]
[392616426,1761748244293,-500.0,0.00022739,2]
[392616427,1761748244303,-500.0,0.00022739,2]
[392616428,1761748244313,-500.0,0.00022739,2]
[392616429,1761748244324,-745.4,0.00022739,2]
[392616430,1761748244333,-500.0,0.00022739,2]
[392616431,1761748244343,-500.0,0.00022739,2]
[392616432,1761748244353,-500.0,0.00022739,2]
[392616433,1761748244363,-444.41397224,0.00022739,2]
[392616434,1761748244372,-597.91,0.00022739,2]
[392616435,1761748244382,-597.29978508,0.00022739,2]
[392616436,1761748244392,-609.15,0.00022739,2]
[392616437,1761748244402,-500.0,0.00022739,2]
[392616438,1761748244411,-523.72485202,0.00022739,2]
[392616439,1761748244421,-500.0,0.00022739,2]
[392616440,1761748244430,-817.61,0.00022739,2]
[392616441,1761748244440,-500.0,0.00022739,2]
[392616442,1761748244450,-500.0,0.00022739,2]
[392616443,1761748244460,-500.0,0.00022739,2]
[392616444,1761748244470,-500.0,0.00022739,2]
[392616445,1761748244480,-500.0,0.00022739,2]
[392616446,1761748244489,-500.0,0.00022739,2]
[392616447,1761748244498,-500.0,0.00022739,2]
[392616448,1761748244507,-500.0,0.00022739,2]
[392616449,1761748244516,-500.0,0.00022739,2]
[392616450,1761748244526,-500.0,0.00022739,2]
[392616451,1761748244535,-500.0,0.00022739,2]
[392616452,1761748244544,-500.0,0.00022739,2]
[392616453,1761748244554,-500.0,0.00022739,2]
[392616454,1761748244575,-242.0331843,0.00022739,2]
[392616455,1761748244585,-500.0,0.00022739,2]
[392616456,1761748244596,-500.0,0.00022739,2]
[392616457,1761748244606,-500.0,0.00022739,2]
[392616458,1761748244615,-500.0,0.00022739,2]
[392616459,1761748244626,-500.0,0.00022739,2]
[392616460,1761748244636,-500.0,0.00022739,2]
[392616461,1761748244646,-500.0,0.00022739,2]
[392616462,1761748244656,-920.4,0.00022739,2]
[392616463,1761748244665,-576.42,0.00022739,2]
[392616464,1761748244675,-500.0,0.00022739,2]
[392616465,1761748244685,-500.0,0.00022739,2]
[392616466,1761748244696,-500.0,0.00022739,2]
[392616467,1761748244706,-500.0,0.00022739,2]
[392616468,1761748244716,-1983.93,0.00022739,2]
[392616469,1761748244725,-649.2,0.00022739,2]
[392616470,1761748244735,-500.0,0.00022739,2]
[392616471,1761748244745,-500.0,0.00022739,2]
[392616472,1761748244755,-500.0,0.00022739,2]
[392616473,1761748244764,-500.0,0.00022739,2]
[392616474,1761748244774,-10612.98,0.00022739,2]
[392616475,1761748244783,-500.0,0.00022739,2]
[392616476,1761748244792,-599.6,0.00022739,2]
[392616477,1761748244801,-500.0,0.00022739,2]
[392616478,1761748244811,-618.31572845,0.00022739,2]
[392616479,1761748244821,-1160.7,0.00022739,2]
[392616480,1761748244830,-536.55,0.00022739,2]
[392616481,1761748244840,-1320.59,0.00022739,2]
[392616482,1761748244849,-500.0,0.00022739,2]
[392616483,1761748244859,-861.29,0.00022739,2]
[392616484,1761748244868,-676.52,0.00022739,2]
[392616485,1761748244879,-500.0,0.00022739,2]
[392616486,1761748244888,-500.0,0.00022739,2]
[392616487,1761748244898,-500.0,0.00022739,2]
[392616488,1761748244908,-500.0,0.00022739,2]
[392616489,1761748244921,-500.0,0.00022739,2]
[392616490,1761748244931,-500.0,0.00022739,2]
[392616491,1761748244940,-500.0,0.00022739,2]
[392616492,1761748244950,-562.34,0.00022739,2]
[392616493,1761748244960,-500.0,0.00022739,2]
[392616494,1761748244970,-500.0,0.00022739,2]
[392616495,1761748244980,-500.0,0.00022739,2]
[392616496,1761748244989,-500.0,0.00022739,2]
[392616497,1761748244999,-863.18,0.00022739,2]
[392616498,1761748245010,-545.27,0.00022739,2]
[392616499,1761748245020,-834.37,0.00022739,2]
[392616500,1761748245030,-1223.53,0.00022739,2]
[392616501,1761748245040,-500.0,0.00022739,2]
[392616502,1761748245049,-500.0,0.00022739,2]
[392616503,1761748245059,-500.0,0.00022739,2]
[392616504,1761748245068,-640.15272456,0.00022739,2]
[392616505,1761748245078,-1841.12,0.00022739,2]
[392616506,1761748245088,-780.49,0.00022739,2]
[392616507,1761748245098,-500.0,0.00022739,2]
[392616508,1761748245107,-500.0,0.00022739,2]
[392616509,1761748245120,-964.7,0.00022739,2]
[392616510,1761748245129,-500.0,0.00022739,2]
[392616511,1761748245139,-500.0,0.00022739,2]
[392616512,1761748245154,-602.84,0.00022739,2]
[392616513,1761748245165,-1486.59,0.00022739,2]
[392616514,1761748245174,-500.0,0.00022739,2]
[392616515,1761748245184,-721.35,0.00022739,2]
[392616516,1761748245194,-500.0,0.00022739,2]
[392616517,1761748245205,-2496.0,0.00022739,2]
[392616518,1761748245215,-773.59,0.00022739,2]
[392616519,1761748245225,-686.23,0.00022739,2]
[392616520,1761748245235,-500.0,0.00022739,2]
[392616521,1761748245244,-500.0,0.00022739,2]
[392616522,1761748245255,-500.0,0.00022739,2]
[392616523,1761748245264,-644.77,0.00022739,2]
[392616524,1761748245274,-500.0,0.00022739,2]
[392616525,1761748245284,-500.0,0.00022739,2]
[392616526,1761748245299,-500.0,0.00022739,2]
[392616527,1761748245309,-500.0,0.00022739,2]
[392616528,1761748245319,-500.0,0.00022739,2]
[392616529,1761748245328,-59.80058687,0.00022739,2]
[392616537,1761748245765,-20731.4641828,0.00020013,2]
[392616539,1761748245777,-2204.42508555,0.00020013,2]
[392616540,1761748245788,-19508.7621435,0.00020013,2]
[392616541,1761748245799,-1163.32,0.00020013,2]
[392616542,1761748245810,-225040.0,0.00020013,2]
[392616543,1761748245826,-23769.86,0.00020013,2]
[392616544,1761748245837,-408.35327065,0.00020013,2]
[392616545,1761748245944,-1518.23988228,0.00019813,2]
[392616546,1761748245958,-3481.76011772,0.00019813,2]
[392616547,1761748245968,-13392.23988225,0.00020013,2]
[392616548,1761748246324,-3099.8764845,0.00020013,2]
[392616549,1761748246335,-5615.02255705,0.00020013,2]
[392616550,1761748246347,-55066.6763937,0.00020013,2]
[392616551,1761748246356,-500.0,0.00020173,2]
[392616552,1761748246365,-1000.0,0.00020721,2]
[392616553,1761748246374,-1500.0,0.00021268,2]
[392616554,1761748246383,-984.0,0.00021514,2]
[392616555,1761748246392,-633.0,0.00021542,2]
[392616556,1761748246402,-2009.26969229,0.00021816,2]
[392616557,1761748246411,-500.0,0.00021917,2]
[392616558,1761748246421,-641.32401464,0.00021917,2]
[392616559,1761748246430,-500.0,0.00021917,2]
[392616560,1761748246440,-500.0,0.00021917,2]
[392616561,1761748246451,-505.38,0.00021917,2]
[392616562,1761748246460,-500.0,0.00021917,2]
[392616563,1761748246469,-500.0,0.00021917,2]
[392616564,1761748246478,-500.0,0.00021917,2]
[392616565,1761748246487,-500.0,0.00021917,2]
[392616566,1761748246496,-500.0,0.00021973,2]
[392616567,1761748246505,-500.0,0.00022191,2]
[392616568,1761748246514,-505.38,0.00022191,2]
[392616569,1761748246524,-500.0,0.00022191,2]
[392616570,1761748246532,-500.0,0.00022191,2]
[392616571,1761748246542,-571.55400009,0.00022191,2]
[392616572,1761748246551,-500.0,0.00022465,2]
[392616573,1761748246560,-505.38,0.00022465,2]
[392616574,1761748246569,-1000.0,0.00022521,2]
[392616575,1761748246578,-440.19941313,0.00022739,2]
[392616576,1761748246587,-699.78,0.00022739,2]
[392616577,1761748246596,-775.58,0.00022739,2]
[392616578,1761748246605,-500.0,0.00022739,2]
[392616579,1761748246614,-559.3,0.00022739,2]
[392616580,1761748246623,-500.0,0.00022739,2]
[392616581,1761748246633,-1136.5,0.00022739,2]
[392616582,1761748246643,-4323.77,0.00022739,2]
[392616583,1761748246652,-500.0,0.00022739,2]
[392616584,1761748246662,-198.0,0.00022739,7]
[392616585,1761748246672,-500.0,0.00022739,2]
[392616586,1761748246681,-796.69,0.00022739,2]
[392616587,1761748246690,-500.0,0.00022739,2]
[392616588,1761748246700,-500.0,0.00022739,2]
[392616589,1761748246709,-500.0,0.00022739,2]
[392616590,1761748246719,-579.7,0.00022739,2]
[392616591,1761748246728,-202.44172237,0.00022739,2]
[392616592,1761748246738,-500.0,0.00022739,2]
[392616593,1761748246747,-942.89,0.00022739,2]
[392616594,1761748246756,-500.0,0.00022739,2]
[392616595,1761748246765,-304.03642145,0.00022739,2]
[392616596,1761748246775,-500.0,0.00022739,2]
[392616597,1761748246784,-500.0,0.00022739,2]
[392616598,1761748246793,-500.0,0.00022739,2]
[392616599,1761748246803,-1214.92954013,0.00022739,2]
[392616600,1761748246812,-1352.33,0.00022739,2]
[392616601,1761748246821,-500.0,0.00022739,2]
[392616602,1761748246830,-500.0,0.00022739,2]
[392616603,1761748246840,-500.0,0.00022739,2]
[392616604,1761748246849,-500.0,0.00022739,2]
[392616605,1761748246859,-657.55,0.00022739,2]
[392616606,1761748246868,-943.1294826,0.00022739,2]
[392616607,1761748248118,-500.0,0.00021917,2]
[392616608,1761748248128,-500.0,0.00021917,2]
[392616609,1761748248137,-500.0,0.00022191,2]
[392616610,1761748248147,-500.0,0.00022191,2]
[392616611,1761748248156,-500.0,0.00022191,2]
[392616612,1761748248166,-309.5,0.00022465,2]
[392616613,1761748261157,288.46,0.00016365,30]
[392616614,1761748275063,500.0,0.00022,120]
[392616616,1761748275860,500.0,0.00022,120]
[392616620,1761748276634,500.0,0.00022,120]
[392616621,1761748278232,500.0,0.00022,120]
[392616622,1761748279053,500.0,0.00022,120]
[392616623,1761748280364,500.0,0.00022,120]
[392616624,1761748281145,500.0,0.00022,120]
[392616625,1761748281917,500.0,0.00022,120]
[392616626,1761748282720,500.0,0.00022,120]
[392616627,1761748283516,500.0,0.00022,120]
[392616628,1761748284338,500.0,0.00022,120]
[392616629,1761748285159,500.0,0.00022,120]
[392616630,1761748285970,500.0,0.00022,120]
[392616631,1761748286747,500.0,0.00022,120]
[392616632,1761748287555,500.0,0.00022,120]
[392616633,1761748288359,500.0,0.00022,120]
[392616634,1761748289144,500.0,0.00022,120]
[392616635,1761748289997,500.0,0.00022,120]
[392616636,1761748290821,500.0,0.00022,120]
[392616637,1761748291641,500.0,0.00022,120]
[392616638,1761748292411,500.0,0.00022,120]
[392616639,1761748293252,500.0,0.00022,120]
[392616640,1761748294079,500.0,0.00022,120]
[392616641,1761748294864,500.0,0.00022,120]
[392616642,1761748295689,500.0,0.00022,120]
[392616643,1761748297625,500.0,0.00022,120]
[392616644,1761748298453,500.0,0.00022,120]
[392616645,1761748299262,500.0,0.00022,120]
[392616646,1761748300088,500.0,0.00022,120]
[392616647,1761748300888,500.0,0.00022,120]
[392616648,1761748301773,500.0,0.00022,120]
[392616649,1761748302587,500.0,0.00022,120]
[392616650,1761748303379,500.0,0.00022,120]
[392616651,1761748304161,500.0,0.00022,120]
[392616652,1761748304997,500.0,0.00022,120]
[392616653,1761748305768,500.0,0.00022,120]
[392616654,1761748306589,500.0,0.00022,120]
[392616656,1761748308591,500.0,0.00022,120]
[392616657,1761748309398,500.0,0.00022,120]
[392616658,1761748310208,500.0,0.00022,120]
[392616659,1761748311042,500.0,0.00022,120]
[392616660,1761748312332,500.0,0.00022,120]
[392616661,1761748313141,500.0,0.00022,120]
[392616662,1761748313964,500.0,0.00022,120]
[392616663,1761748314809,500.0,0.00022,120]
[392616664,1761748315689,500.0,0.00022,120]
[392616665,1761748317673,500.0,0.00022,120]
[392616666,1761748318522,500.0,0.00022,120]
[392616667,1761748319318,500.0,0.00022,120]
[392616668,1761748320122,500.0,0.00022,120]
[392616669,1761748320888,500.0,0.00022,120]
[392616670,1761748321713,500.0,0.00022,120]
[392616671,1761748322502,500.0,0.00022,120]
[392616672,1761748323337,500.0,0.00022,120]
[392616673,1761748324188,500.0,0.00022,120]
[392616674,1761748325011,500.0,0.00022,120]
[392616675,1761748325781,500.0,0.00022,120]
[392616690,1761748326612,500.0,0.00022,120]
[392616691,1761748327461,500.0,0.00022,120]
[392616692,1761748328254,500.0,0.00022,120]
[392616693,1761748329057,500.0,0.00022,120]
[392616694,1761748329873,500.0,0.00022,120]
[392616695,1761748330697,500.0,0.00022,120]
[392616696,1761748331493,414.06,0.00022,120]
[392616697,1761748344390,286.89,0.00016514,30]
[392616699,1761748399222,500.0,0.00022,120]
[392616700,1761748399878,500.0,0.00022,120]
[392616701,1761748400760,500.0,0.00022,120]
[392616702,1761748401566,500.0,0.00022,120]
[392616703,1761748427067,285.32,0.00016079,30]
[392616706,1761748513081,283.77,0.00016279,30]
[392616716,1761748598266,282.22,0.00016446,30]
[392616723,1761748671598,310.51518958,0.00033633,60]
[392616728,1761748683889,280.68,0.00016492,30]
[392616735,1761748767213,279.15,0.00016688,30]
[392616752,1761748852839,277.63,0.00016711,30]
[392616753,1761748939016,276.11,0.00016529,30]